bitfinex-derivatives/quotes_BTCF0:USTF0_20241226
["timestamp","ask_amount","ask_price","bid_price","bid_amount"]
[1735206908454,0.052433,95450.0,95449.0,0.00257134]
[1735206910558,0.0627844,95450.0,95449.0,0.00257134]
[1735206916061,0.0627844,95450.0,95449.0,0.00157134]
[1735206916761,0.052433,95450.0,95449.0,0.00157134]
[1735206917658,0.053433,95450.0,95449.0,0.00157134]
[1735206919655,0.001,95450.0,95449.0,0.00157134]
[1735206923570,0.01037993,95475.0,95449.0,0.00157134]
[1735206923867,0.052424,95467.0,95465.0,0.10546494]
[1735206924068,0.052424,95467.0,95466.0,0.0685]
[1735206924267,0.0653,95480.0,95466.0,0.0685]
[1735206924465,0.052421,95472.0,95468.0,0.10546494]
[1735206924664,0.001,95475.0,95466.0,0.0685]
[1735206924860,0.052423,95469.0,95466.0,0.0685]
[1735206925261,0.008,95467.0,95466.0,0.0695]
[1735206925660,0.052423,95469.0,95466.0,0.0685]
[1735206925971,0.052423,95469.0,95466.0,0.0695]
[1735206926761,0.002,95472.0,95466.0,0.0695]
[1735206926762,0.052423,95468.0,95466.0,0.0695]
[1735206927173,0.052423,95468.0,95466.0,0.07871083]
[1735206927364,0.008,95467.0,95466.0,0.07971083]
[1735206927766,0.001,95467.0,95466.0,0.07871083]
[1735206927967,0.007,95468.0,95466.0,0.07971083]
[1735206928162,0.008,95468.0,95466.0,0.07971083]
[1735206928363,0.007,95467.0,95466.0,0.07971083]
[1735206928764,0.008,95467.0,95466.0,0.07971083]
[1735206948091,0.1352,95489.0,95477.0,0.052421]
[1735206948290,0.1352,95489.0,95468.0,0.10546494]
[1735206948487,0.1352,95489.0,95485.0,0.052416]
[1735206948990,0.1352,95489.0,95487.0,0.052415]
[1735206950198,0.1422,95489.0,95487.0,0.052415]
[1735206950598,0.1352,95489.0,95487.0,0.052415]
[1735206950798,0.1442,95489.0,95487.0,0.053415]
[1735206951296,0.1492,95489.0,95487.0,0.053415]
[1735206951490,0.1492,95489.0,95487.0,0.06409807]
[1735206952097,0.21789899,95511.0,95489.0,0.052413]
[1735206952393,0.21789899,95511.0,95510.0,0.052402]
[1735206953105,0.0693,95526.0,95501.0,0.10546494]
[1735206953106,0.00084,95519.0,95501.0,0.10546494]
[1735206953290,0.01,95511.0,95503.0,0.052406]
[1735206953494,0.01,95511.0,95491.0,0.18835716]
[1735206953495,0.1294,95510.0,95491.0,0.18835716]
[1735206953802,0.052406,95503.0,95500.0,0.10546494]
[1735206954003,0.0662,95502.0,95493.0,0.052412]
[1735206954200,0.0662,95502.0,95491.0,0.1992025]
[1735206954399,0.052412,95493.0,95491.0,0.01084534]
[1735206954606,0.052412,95493.0,95490.0,0.10546494]
[1735206954607,0.0643,95492.0,95486.0,0.18835716]
[1735206954791,0.052415,95488.0,95486.0,0.19878751]
[1735206954986,0.052415,95488.0,95486.0,0.18835716]
[1735206956094,0.052416,95486.0,95473.0,0.052423]
[1735206956495,0.052416,95486.0,95476.0,0.10546494]
[1735206956702,0.052416,95486.0,95473.0,0.06288009]
[1735206957001,0.052416,95486.0,95474.0,0.052422]
[1735206957789,0.053416,95486.0,95473.0,0.01045709]
[1735206958099,0.053416,95486.0,95476.0,0.15788594]
[1735206959400,0.052416,95486.0,95476.0,0.15788594]
[1735206959798,0.053416,95486.0,95476.0,0.15788594]
[1735206959996,0.053416,95486.0,95476.0,0.15888594]
[1735206960604,0.053416,95486.0,95476.0,0.053421]
[1735206960798,0.001,95486.0,95470.0,0.10546494]
[1735206960995,0.052419,95482.0,95469.0,0.24078216]
[1735206961191,0.0648,95481.0,95469.0,0.24078216]
[1735206961396,0.0648,95481.0,95466.0,0.20067494]
[1735206961705,0.0648,95481.0,95470.0,0.15788894]
[1735206961894,0.0648,95481.0,95471.0,0.052424]
[1735206962495,0.0648,95481.0,95470.0,0.10546494]
[1735206962695,0.0648,95481.0,95472.0,0.052424]
[1735206963796,0.0648,95481.0,95473.0,0.052423]
[1735206964404,0.0658,95481.0,95473.0,0.052423]
[1735206964797,0.0648,95481.0,95473.0,0.052423]
[1735206964992,0.0658,95481.0,95473.0,0.052423]
[1735206965501,0.0658,95481.0,95466.0,0.01231778]
[1735206965502,0.05242,95480.0,95466.0,0.01231778]
[1735206965709,0.052424,95473.0,95466.0,0.01231778]
[1735206967107,0.053424,95473.0,95466.0,0.01231778]
[1735206969610,0.053424,95473.0,95466.0,0.01074659]
[1735206969799,0.053424,95473.0,95465.0,0.052428]
[1735206970204,0.052424,95473.0,95465.0,0.052428]
[1735206970407,0.053424,95473.0,95465.0,0.052428]
[1735206970714,0.0684,95472.0,95465.0,0.052428]
[1735206971301,0.0684,95472.0,95455.0,0.052433]
[1735206971507,0.052428,95465.0,95453.0,0.01058615]
[1735206971704,0.052428,95465.0,95452.0,0.18835716]
[1735206972098,0.052429,95463.0,95452.0,0.18835716]
[1735206972314,0.05243,95462.0,95452.0,0.18835716]
[1735206972504,0.05243,95462.0,95455.0,0.002]
[1735206973109,0.05243,95462.0,95451.0,0.052435]
[1735206973310,0.05243,95462.0,95452.0,0.003]
[1735206973615,0.05343,95462.0,95452.0,0.003]
[1735206974114,0.05243,95462.0,95452.0,0.003]
[1735206974613,0.05243,95461.0,95452.0,0.003]
[1735206975108,0.052432,95458.0,95452.0,0.01373339]
[1735206975315,0.052432,95458.0,95455.0,0.002]
[1735206975611,0.10546494,95470.0,95455.0,0.002]
[1735206975612,0.052433,95456.0,95455.0,0.002]
[1735206976215,0.052433,95456.0,95446.0,0.18835716]
[1735206976216,0.052438,95447.0,95446.0,0.18835716]
[1735206976815,0.052439,95445.0,95444.0,0.000125]
[1735206978115,0.052439,95445.0,95444.0,0.003125]
[1735206979411,0.052439,95445.0,95444.0,0.007125]
[1735206979614,0.052439,95445.0,95444.0,0.01765726]
[1735206986016,0.052423,95474.0,95444.0,0.01765726]
[1735206986017,0.00157176,95465.0,95444.0,0.01765726]
[1735206986320,0.00157176,95465.0,95453.0,0.052434]
[1735206986321,0.052428,95464.0,95453.0,0.052434]
[1735206986521,0.052428,95464.0,95454.0,0.0666]
[1735206987921,0.053428,95464.0,95454.0,0.0666]
[1735206988421,0.053428,95464.0,95454.0,0.0686]
[1735206988622,0.053428,95464.0,95455.0,0.052433]
[1735206990717,0.053428,95464.0,95455.0,0.054433]
[1735206991423,0.052432,95457.0,95455.0,0.01275969]
[1735206993524,0.052429,95464.0,95455.0,0.01275969]
[1735206993823,0.001,95457.0,95455.0,0.06519269]
[1735206994020,0.001,95457.0,95456.0,0.0641]
[1735206994527,0.00157176,95465.0,95456.0,0.0641]
[1735206994727,0.00157176,95465.0,95463.0,0.052429]
[1735206995019,0.00157176,95465.0,95464.0,0.0642]
[1735206996026,0.00157176,95465.0,95464.0,0.25255716]
[1735206996717,0.0637,95489.0,95464.0,0.0642]
[1735206997029,0.0637,95489.0,95479.0,0.10546494]
[1735206997619,0.0651,95493.0,95484.0,0.052417]
[1735206997815,0.05241,95498.0,95486.0,0.052416]
[1735206998021,0.05241,95498.0,95488.0,0.10546494]
[1735206998215,0.001,95489.0,95488.0,0.10546494]
[1735206998415,0.001,95489.0,95487.0,0.052416]
[1735206998628,0.004,95489.0,95487.0,0.052416]
[1735207000126,0.006,95489.0,95488.0,0.001]
[1735207000327,0.005,95489.0,95488.0,0.001]
[1735207001228,0.006,95489.0,95488.0,0.001]
[1735207001421,0.004,95489.0,95487.0,0.053416]
[1735207001621,0.003,95489.0,95487.0,0.052416]
[1735207001822,0.004,95489.0,95488.0,0.001]
[1735207003720,0.056417,95489.0,95487.0,0.01170076]
[1735207003915,0.1309,95488.0,95487.0,0.001]
[1735207004332,0.1309,95488.0,95481.0,0.052421]
[1735207004926,0.1309,95488.0,95487.0,0.001]
[1735207005329,0.1309,95488.0,95481.0,0.052421]
[1735207005526,0.1319,95488.0,95481.0,0.001]
[1735207005827,0.05242,95483.0,95481.0,0.01139941]
[1735207006023,0.05242,95483.0,95481.0,0.001]
[1735207006926,0.05442,95483.0,95475.0,0.052424]
[1735207007529,0.05542,95483.0,95481.0,0.001]
[1735207008630,0.05542,95483.0,95475.0,0.052424]
[1735207009432,0.05542,95483.0,95475.0,0.06288501]
[1735207009627,0.05542,95483.0,95475.0,0.01046101]
[1735207009830,0.05542,95483.0,95476.0,0.052424]
[1735207010031,0.05542,95483.0,95481.0,0.001]
[1735207010735,0.05542,95483.0,95476.0,0.052424]
[1735207011236,0.05542,95483.0,95481.0,0.001]
[1735207011836,0.05442,95483.0,95481.0,0.001]
[1735207012833,0.052423,95477.0,95476.0,0.0116776]
[1735207013029,0.052423,95477.0,95476.0,0.001]
[1735207013437,0.003,95483.0,95457.0,0.18816342]
[1735207013736,0.05243,95464.0,95457.0,0.18816342]
[1735207014642,0.05243,95464.0,95457.0,0.01066592]
[1735207014822,0.05243,95464.0,95453.0,0.052436]
[1735207015137,0.05243,95464.0,95457.0,0.002]
[1735207016136,0.05343,95464.0,95457.0,0.002]
[1735207016630,0.05243,95464.0,95457.0,0.002]
[1735207016832,0.05343,95464.0,95457.0,0.002]
[1735207017028,0.05343,95464.0,95453.0,0.052436]
[1735207017230,0.1324,95463.0,95456.0,0.002]
[1735207017822,0.1324,95463.0,95453.0,0.06331363]
[1735207018028,0.1324,95463.0,95457.0,0.002]
[1735207018539,0.0643,95463.0,95457.0,0.002]
[1735207018737,0.05343,95464.0,95456.0,0.054435]
[1735207019329,0.05243,95464.0,95456.0,0.054435]
[1735207019632,0.05343,95464.0,95456.0,0.054435]
[1735207020234,0.05343,95464.0,95457.0,0.002]
[1735207020836,0.05343,95464.0,95456.0,0.052435]
[1735207021135,0.05343,95464.0,95456.0,0.054435]
[1735207021638,0.05343,95464.0,95456.0,0.052435]
[1735207021838,0.05343,95464.0,95457.0,0.002]
[1735207023735,0.05343,95464.0,95456.0,0.052435]
[1735207023940,0.05343,95464.0,95456.0,0.054435]
[1735207024239,0.052434,95458.0,95456.0,0.002]
[1735207024633,0.052437,95451.0,95450.0,0.18816342]
[1735207025834,0.052439,95448.0,95444.0,0.01099626]
[1735207026235,0.05244,95447.0,95444.0,0.01099626]
[1735207026437,0.1363,95457.0,95444.0,0.01099626]
[1735207027439,0.1363,95457.0,95450.0,0.003]
[1735207028049,0.1363,95457.0,95444.0,0.01399626]
[1735207028050,0.052439,95449.0,95444.0,0.01399626]
[1735207028245,0.052439,95449.0,95444.0,0.01799626]
[1735207028445,0.05244,95448.0,95444.0,0.01799626]
[1735207028941,0.05244,95448.0,95444.0,0.01399626]
[1735207029143,0.01085957,95463.0,95444.0,0.01399626]
[1735207029444,0.052428,95468.0,95444.0,0.01399626]
[1735207029641,0.052436,95454.0,95444.0,0.01399626]
[1735207029839,0.052436,95454.0,95444.0,0.01099626]
[1735207030041,0.052436,95454.0,95444.0,0.01399626]
[1735207030442,0.052436,95454.0,95444.0,0.01799626]
[1735207030839,0.052436,95454.0,95444.0,0.1234612]
[1735207031045,0.052436,95454.0,95444.0,0.1194612]
[1735207031345,0.19744,95480.0,95444.0,0.1234612]
[1735207031553,0.052431,95463.0,95451.0,0.052437]
[1735207033643,0.31345694,95480.0,95450.0,0.10546494]
[1735207033953,0.052435,95456.0,95444.0,0.01499626]
[1735207034142,0.052435,95456.0,95451.0,0.002]
[1735207035040,0.052435,95456.0,95450.0,0.002]
[1735207035958,0.1298,95455.0,95450.0,0.002]
[1735207036953,0.1298,95455.0,95444.0,0.01099626]
[1735207037163,0.1298,95455.0,95451.0,0.002]
[1735207037856,0.1298,95455.0,95450.0,0.002]
[1735207038448,0.1298,95455.0,95444.0,0.01399626]
[1735207038650,0.1298,95455.0,95451.0,0.002]
[1735207040153,0.1298,95455.0,95450.0,0.002]
[1735207040551,0.182235,95455.0,95450.0,0.002]
[1735207040952,0.182235,95455.0,95451.0,0.002]
[1735207041657,0.182235,95455.0,95446.0,0.18793839]
[1735207041850,0.182235,95455.0,95450.0,0.002]
[1735207042253,0.052437,95451.0,95450.0,0.002]
[1735207042663,0.052441,95445.0,95444.0,0.000125]
[1735207043955,0.052441,95445.0,95444.0,0.004125]
[1735207044263,0.052441,95445.0,95444.0,0.007125]
[1735207052086,0.052429,95467.0,95452.0,0.052437]
[1735207052389,0.052429,95467.0,95455.0,0.10546494]
[1735207052588,0.01072813,95474.0,95455.0,0.10546494]
[1735207052791,0.42218097,95475.0,95455.0,0.10546494]
[1735207052992,0.42218097,95475.0,95455.0,0.21092988]
[1735207052993,0.052426,95473.0,95455.0,0.21092988]
[1735207053494,0.00257193,95465.0,95455.0,0.10546494]
[1735207053695,0.00257193,95465.0,95455.0,0.21092988]
[1735207053896,0.00357193,95465.0,95462.0,0.052431]
[1735207055396,0.00357193,95465.0,95458.0,0.18793839]
[1735207056293,0.00357193,95465.0,95457.0,0.052434]
[1735207056691,0.00357193,95465.0,95458.0,0.001]
[1735207057392,0.00357193,95465.0,95457.0,0.06306443]
[1735207057393,0.00357193,95465.0,95457.0,0.06406443]
[1735207058796,0.00357193,95465.0,95457.0,0.06306443]
[1735207059008,0.00357193,95465.0,95458.0,0.001]
[1735207060094,0.00357193,95465.0,95457.0,0.06306443]
[1735207060289,0.00357193,95465.0,95457.0,0.06406443]
[1735207061500,0.00157193,95465.0,95457.0,0.06406443]
[1735207061797,0.00357193,95465.0,95457.0,0.06306443]
[1735207062099,0.00357193,95465.0,95458.0,0.053433]
[1735207062697,0.00357193,95465.0,95458.0,0.052433]
[1735207063494,0.00357193,95465.0,95458.0,0.053433]
[1735207069202,0.00357193,95465.0,95458.0,0.001]
[1735207069395,0.052433,95460.0,95455.0,0.11611994]
[1735207069700,0.052433,95460.0,95458.0,0.001]
[1735207071206,0.052433,95460.0,95455.0,0.11611994]
[1735207071404,0.054433,95460.0,95455.0,0.11611994]
[1735207073593,0.054433,95460.0,95455.0,0.010655]
[1735207073797,0.054433,95460.0,95452.0,0.052437]
[1735207074810,0.054433,95460.0,95455.0,0.001]
[1735207075012,0.053433,95460.0,95455.0,0.001]
[1735207076503,0.052434,95457.0,95455.0,0.001]
[1735207077008,0.052435,95454.0,95453.0,0.18793839]
[1735207077712,0.052435,95454.0,95452.0,0.002]
[1735207078009,0.05244,95445.0,95444.0,0.000125]
[1735207080304,0.05244,95445.0,95444.0,0.003125]
[1735207081015,0.05244,95445.0,95444.0,0.006125]
[1735207087322,0.05243,95464.0,95457.0,0.052434]
[1735207087521,0.05243,95464.0,95458.0,0.052433]
[1735207088221,0.05243,95464.0,95450.0,0.10546494]
[1735207088517,0.05543,95464.0,95460.0,0.052432]
[1735207090516,0.003,95464.0,95446.0,0.18793839]
[1735207090825,0.052437,95451.0,95446.0,0.18793839]
[1735207091324,0.052438,95449.0,95446.0,0.18793839]
[1735207091719,0.052438,95449.0,95446.0,0.003]
[1735207091914,0.052438,95449.0,95446.0,0.005]
[1735207092114,0.052438,95449.0,95446.0,0.0153372]
[1735207092314,0.052438,95449.0,95446.0,0.003]
[1735207092522,0.052438,95449.0,95446.0,0.005]
[1735207092833,0.052434,95457.0,95446.0,0.005]
[1735207093215,0.052434,95457.0,95447.0,0.10546494]
[1735207094522,0.052434,95457.0,95447.0,0.10646494]
[1735207094724,0.052434,95457.0,95447.0,0.10946494]
[1735207095915,0.052435,95456.0,95447.0,0.10946494]
[1735207096111,0.052435,95455.0,95447.0,0.10946494]
[1735207096610,0.052435,95455.0,95447.0,0.004]
[1735207097025,0.052436,95454.0,95447.0,0.001]
[1735207097228,0.052436,95454.0,95447.0,0.004]
[1735207097815,0.052436,95454.0,95447.0,0.001]
[1735207098021,0.052436,95454.0,95447.0,0.004]
[1735207098215,0.052436,95454.0,95447.0,0.003]
[1735207098422,0.052436,95454.0,95447.0,0.004]
[1735207099323,0.052436,95454.0,95447.0,0.001]
[1735207099631,0.052436,95454.0,95447.0,0.004]
[1735207105220,0.052436,95454.0,95447.0,0.056439]
[1735207106217,0.052432,95461.0,95447.0,0.056439]
[1735207106421,0.052432,95461.0,95451.0,0.10546494]
[1735207106623,0.052432,95461.0,95453.0,0.052436]
[1735207108919,0.053432,95461.0,95453.0,0.052436]
[1735207110024,0.053432,95461.0,95453.0,0.053436]
[1735207111332,0.053432,95461.0,95455.0,0.052435]
[1735207111627,0.001,95461.0,95459.0,0.052432]
[1735207112423,0.21758097,95478.0,95454.0,0.0667]
[1735207112630,0.21758097,95478.0,95477.0,0.052423]
[1735207113624,0.21758097,95478.0,95468.0,0.10546494]
[1735207113625,0.00092,95489.0,95479.0,0.052421]
[1735207113835,0.052416,95491.0,95479.0,0.15788594]
[1735207114335,0.052419,95484.0,95479.0,0.10546494]
[1735207114923,0.052415,95491.0,95481.0,0.05242]
[1735207115123,0.053415,95491.0,95481.0,0.05242]
[1735207115318,0.053415,95491.0,95482.0,0.05242]
[1735207115536,0.1949,95499.0,95479.0,0.10546494]
[1735207115720,0.004,95491.0,95489.0,0.15788094]
[1735207115929,0.004,95491.0,95489.0,0.052416]
[1735207116439,0.004,95491.0,95490.0,0.052416]
[1735207117130,0.1321,95499.0,95490.0,0.052416]
[1735207117324,0.006,95491.0,95490.0,0.052416]
[1735207118625,0.006,95491.0,95490.0,0.053416]
[1735207118824,0.007,95491.0,95490.0,0.053416]
[1735207119429,0.007,95491.0,95490.0,0.054416]
[1735207121934,0.001,95491.0,95490.0,0.052416]
[1735207122137,0.002,95491.0,95490.0,0.052416]
[1735207124233,0.002,95491.0,95483.0,0.052419]
[1735207124431,0.002,95491.0,95484.0,0.01042102]
[1735207124740,0.002,95491.0,95485.0,0.01042102]
[1735207124920,0.002,95491.0,95483.0,0.052419]
[1735207125122,0.002,95491.0,95484.0,0.0104199]
[1735207125321,0.001,95491.0,95483.0,0.052419]
[1735207125526,0.05242,95483.0,95469.0,0.052427]
[1735207125731,0.05242,95483.0,95473.0,0.10546494]
[1735207125924,0.1963,95490.0,95473.0,0.10546494]
[1735207126121,0.052417,95489.0,95473.0,0.10546494]
[1735207126327,0.1963,95490.0,95473.0,0.10546494]
[1735207126546,0.052422,95479.0,95473.0,0.10546494]
[1735207126738,0.052424,95476.0,95473.0,0.10546494]
[1735207126929,0.001,95483.0,95467.0,0.18793839]
[1735207127132,0.052428,95468.0,95460.0,0.10546494]
[1735207127333,0.0643,95467.0,95460.0,0.10546494]
[1735207127527,0.1321,95467.0,95460.0,0.10546494]
[1735207128831,0.1331,95467.0,95460.0,0.10546494]
[1735207132337,0.1331,95467.0,95461.0,0.01042852]
[1735207132538,0.1331,95467.0,95460.0,0.10546494]
[1735207132739,0.1331,95467.0,95461.0,0.01042445]
[1735207132939,0.1331,95467.0,95460.0,0.10546494]
[1735207133240,0.1331,95467.0,95461.0,0.01042445]
[1735207133440,0.1331,95467.0,95460.0,0.10546494]
[1735207133643,0.1331,95467.0,95461.0,0.01042626]
[1735207133939,0.1331,95467.0,95460.0,0.10546494]
[1735207134132,0.1331,95467.0,95461.0,0.01042626]
[1735207134333,0.1331,95467.0,95462.0,0.01042764]
[1735207134526,0.1331,95467.0,95460.0,0.10546494]
[1735207134734,0.1331,95467.0,95461.0,0.01042764]
[1735207134932,0.1331,95467.0,95462.0,0.01042764]
[1735207135132,0.1331,95467.0,95460.0,0.10546494]
[1735207135333,0.1331,95467.0,95461.0,0.01042824]
[1735207135533,0.1331,95467.0,95460.0,0.10546494]
[1735207137742,0.0653,95467.0,95460.0,0.10546494]
[1735207140647,0.052429,95465.0,95460.0,0.10546494]
[1735207140842,0.052432,95459.0,95458.0,0.01030049]
[1735207141040,0.052432,95459.0,95457.0,0.00157111]
[1735207141738,0.181729,95466.0,95457.0,0.00157111]
[1735207141945,0.0653,95467.0,95458.0,0.01043074]
[1735207142140,0.001,95467.0,95459.0,0.01043074]
[1735207142337,0.001,95467.0,95458.0,0.0632]
[1735207142338,0.001,95467.0,95463.0,0.05243]
[1735207142534,0.001,95467.0,95464.0,0.01043074]
[1735207142739,0.001,95467.0,95463.0,0.05243]
[1735207142935,0.001,95467.0,95464.0,0.01043411]
[1735207143132,0.052425,95472.0,95458.0,0.0632]
[1735207143345,0.052425,95472.0,95462.0,0.10546494]
[1735207143546,0.052425,95472.0,95463.0,0.01043426]
[1735207143749,0.001,95467.0,95464.0,0.01043426]
[1735207143935,0.001,95467.0,95460.0,0.10546494]
[1735207144141,0.0655,95478.0,95461.0,0.01043426]
[1735207144450,0.052426,95471.0,95468.0,0.10546494]
[1735207144643,0.052426,95471.0,95461.0,0.10546494]
[1735207144845,0.001,95467.0,95462.0,0.01043355]
[1735207145040,0.001,95472.0,95465.0,0.052429]
[1735207145239,0.001,95472.0,95469.0,0.052427]
[1735207145439,0.001,95472.0,95470.0,0.01043355]
[1735207145649,0.001,95472.0,95471.0,0.01043355]
[1735207145844,0.001,95472.0,95471.0,0.01043969]
[1735207146039,0.05242,95483.0,95471.0,0.01043969]
[1735207146246,0.05242,95483.0,95473.0,0.10546494]
[1735207146545,0.05242,95483.0,95474.0,0.01043969]
[1735207146739,0.05242,95483.0,95473.0,0.10546494]
[1735207146940,0.05242,95483.0,95474.0,0.01044141]
[1735207147144,0.05242,95483.0,95473.0,0.10546494]
[1735207147336,0.05342,95483.0,95474.0,0.01044203]
[1735207147539,0.05342,95483.0,95475.0,0.01044203]
[1735207147742,0.05242,95483.0,95473.0,0.10546494]
[1735207147939,0.05342,95483.0,95474.0,0.01044259]
[1735207148143,0.05342,95483.0,95475.0,0.01044259]
[1735207148341,0.05342,95483.0,95476.0,0.01044259]
[1735207148538,0.05342,95483.0,95473.0,0.1684322]
[1735207148755,0.05342,95483.0,95474.0,0.01045033]
[1735207148951,0.05342,95483.0,95475.0,0.01045033]
[1735207149151,0.05342,95483.0,95476.0,0.01045033]
[1735207149457,0.05342,95483.0,95473.0,0.1684322]
[1735207149458,0.05342,95483.0,95477.0,0.01045033]
[1735207149756,0.05342,95483.0,95473.0,0.1684322]
[1735207149956,0.05342,95483.0,95474.0,0.01045275]
[1735207150156,0.05342,95483.0,95475.0,0.01045275]
[1735207150345,0.05342,95483.0,95476.0,0.01045275]
[1735207150547,0.05342,95483.0,95477.0,0.01045275]
[1735207150748,0.05342,95483.0,95473.0,0.1684322]
[1735207151057,0.05342,95483.0,95474.0,0.01045337]
[1735207151256,0.05342,95483.0,95475.0,0.01045337]
[1735207151443,0.05342,95483.0,95476.0,0.01045337]
[1735207151649,0.05442,95483.0,95477.0,0.01045337]
[1735207151849,0.002,95483.0,95478.0,0.01045337]
[1735207152057,0.05242,95482.0,95479.0,0.01045337]
[1735207152262,0.05242,95481.0,95473.0,0.1684322]
[1735207152456,0.05242,95481.0,95474.0,0.01045701]
[1735207152759,0.05242,95481.0,95473.0,0.1684322]
[1735207152760,0.05242,95481.0,95475.0,0.01045701]
[1735207152961,0.05242,95481.0,95476.0,0.01045701]
[1735207153166,0.05242,95481.0,95477.0,0.01045701]
[1735207153363,0.05242,95481.0,95478.0,0.01045701]
[1735207153554,0.05242,95481.0,95473.0,0.1684322]
[1735207153555,0.05242,95481.0,95479.0,0.01045701]
[1735207153757,0.05342,95481.0,95480.0,0.01045701]
[1735207155755,0.052427,95469.0,95468.0,0.18793839]
[1735207156148,0.052429,95465.0,95464.0,0.25058452]
[1735207157163,0.053429,95465.0,95464.0,0.25058452]
[1735207157549,0.052433,95458.0,95457.0,0.00157111]
[1735207157750,0.052433,95458.0,95457.0,0.02240045]
[1735207158055,0.052433,95458.0,95457.0,0.01202218]
[1735207158764,0.053433,95458.0,95457.0,0.01202218]
[1735207158957,0.053433,95458.0,95457.0,0.00157111]
[1735207159854,0.048433,95458.0,95457.0,0.00157111]
[1735207161164,0.001,95458.0,95457.0,0.01201548]
[1735207161351,0.001,95458.0,95457.0,0.06444848]
[1735207161956,0.001,95458.0,95457.0,0.06444877]
[1735207162358,0.052424,95475.0,95461.0,0.052431]
[1735207162563,0.052424,95475.0,95465.0,0.10546494]
[1735207162763,0.052424,95475.0,95466.0,0.0104447]
[1735207163066,0.052424,95475.0,95467.0,0.0104447]
[1735207163266,0.052424,95475.0,95468.0,0.0104447]
[1735207163567,0.052424,95475.0,95465.0,0.10546494]
[1735207163568,0.001,95475.0,95469.0,0.0104447]
[1735207163866,0.052424,95474.0,95470.0,0.0104447]
[1735207164073,0.052424,95474.0,95465.0,0.10546494]
[1735207164266,0.052424,95474.0,95466.0,0.01044514]
[1735207164467,0.052424,95474.0,95467.0,0.01044514]
[1735207164670,0.052424,95474.0,95465.0,0.10546494]
[1735207164671,0.052424,95474.0,95468.0,0.01044514]
[1735207164863,0.052424,95474.0,95469.0,0.01044514]
[1735207165068,0.052424,95474.0,95470.0,0.01044499]
[1735207165272,0.052425,95473.0,95465.0,0.16869156]
[1735207165469,0.052425,95473.0,95466.0,0.01044548]
[1735207165654,0.052425,95473.0,95467.0,0.01044548]
[1735207165858,0.052425,95473.0,95468.0,0.01044548]
[1735207166056,0.052425,95473.0,95469.0,0.01044548]
[1735207166258,0.052425,95473.0,95470.0,0.01044548]
[1735207166469,0.052425,95473.0,95471.0,0.01044548]
[1735207166655,0.052425,95472.0,95465.0,0.16869156]
[1735207166858,0.052425,95472.0,95466.0,0.01044608]
[1735207167058,0.052425,95472.0,95467.0,0.01044608]
[1735207167260,0.052425,95472.0,95468.0,0.01044608]
[1735207167471,0.052425,95472.0,95469.0,0.01044608]
[1735207167665,0.052425,95472.0,95470.0,0.01044608]
[1735207167973,0.052428,95467.0,95465.0,0.11626256]
[1735207168160,0.052428,95467.0,95466.0,0.01044552]
[1735207169471,0.054428,95467.0,95466.0,0.01044552]
[1735207171065,0.05243,95462.0,95460.0,0.18841463]
[1735207171373,0.0656,95461.0,95460.0,0.18841463]
[1735207172674,0.0656,95461.0,95457.0,0.01215898]
[1735207172675,0.0666,95461.0,95457.0,0.01215898]
[1735207172857,0.052432,95460.0,95458.0,0.01044584]
[1735207173061,0.052433,95458.0,95457.0,0.01215898]
[1735207173264,0.052433,95458.0,95457.0,0.02260393]
[1735207173465,0.052433,95458.0,95457.0,0.02260355]
[1735207173661,0.052433,95458.0,95457.0,0.01215898]
[1735207174058,0.052433,95458.0,95457.0,0.02260362]
[1735207174257,0.052433,95458.0,95457.0,0.02260149]
[1735207175272,0.052433,95458.0,95457.0,0.00157111]
[1735207175571,0.053433,95458.0,95457.0,0.00157111]
[1735207176074,0.053433,95458.0,95457.0,0.01201342]
[1735207176277,0.053433,95458.0,95457.0,0.00157111]
[1735207183671,0.001,95458.0,95457.0,0.0120151]
[1735207186586,0.001,95458.0,95457.0,0.01204229]
[1735207188472,0.001,95458.0,95457.0,0.00157111]
[1735207188687,0.0645,95458.0,95457.0,0.00157111]
[1735207188875,0.0645,95458.0,95448.0,0.01055561]
[1735207189072,0.0645,95458.0,95449.0,0.0104732]
[1735207189375,0.0645,95458.0,95450.0,0.0104732]
[1735207189376,0.052437,95451.0,95450.0,0.0104732]
[1735207190984,0.052437,95451.0,95450.0,0.0124732]
[1735207191575,0.052437,95451.0,95450.0,0.0134732]
[1735207191769,0.052437,95451.0,95450.0,0.001]
[1735207191970,0.052437,95451.0,95450.0,0.01046035]
[1735207192179,0.054437,95451.0,95450.0,0.01046035]
[1735207200280,0.002,95451.0,95450.0,0.06289735]
[1735207201079,0.002,95451.0,95444.0,0.19908376]
[1735207201290,0.052439,95447.0,95445.0,0.01048348]
[1735207201479,0.052439,95447.0,95444.0,0.19908376]
[1735207201480,0.052439,95447.0,95446.0,0.01048348]
[1735207201681,0.002,95451.0,95449.0,0.25058452]
[1735207201882,0.002,95451.0,95450.0,0.01048348]
[1735207202886,0.002,95451.0,95450.0,0.19903744]
[1735207203682,0.002,95451.0,95450.0,0.19904142]
[1735207204082,0.052437,95451.0,95450.0,0.01048746]
[1735207204678,0.054437,95451.0,95450.0,0.01048746]
[1735207206796,0.054437,95451.0,95450.0,0.01048434]
[1735207208696,0.002,95451.0,95444.0,0.000125]
[1735207208887,0.052439,95446.0,95445.0,0.01048251]
[1735207209289,0.052439,95446.0,95444.0,0.000125]
[1735207210395,0.052439,95446.0,95444.0,0.002125]
[1735207223298,0.052446,95434.0,95433.0,0.00011449]
[1735207223507,0.052446,95434.0,95433.0,0.01076097]
[1735207223694,0.052446,95434.0,95433.0,0.00011449]
[1735207224791,0.052446,95434.0,95433.0,0.00911449]
[1735207228794,0.052444,95439.0,95433.0,0.00911449]